[Event "Titled Tuesday Blitz April 4 Late 2023"]
[White "Di Berardino, Diego Rafael"]
[Black "Baskakov, Egor"]
[WhiteFideId "2105446"]
[BlackFideId "24197866"]
[WhiteElo "2432"]
[BlackElo "2212"]
[Result "1-0"]
[Round "02"]
[TimeControl "180+2"]
[Date "2023.04.04"]
[WhiteClock "0:00:12"]
[BlackClock "0:01:26"]

1. e4 {[%clk 0:03:00]}  c5 {[%clk 0:03:00]} 2. Nc3 {[%clk 0:02:55]}  Nc6 {[%clk 0:02:59]} 3. Nf3 {[%clk 0:02:48]}  e5 {[%clk 0:02:59]} 4. Bc4 {[%clk 0:02:47]}  d6 {[%clk 0:02:57]} 5. d3 {[%clk 0:02:46]}  h6 {[%clk 0:02:58]} 6. Nd2 {[%clk 0:02:45]}  g6 {[%clk 0:02:58]} 7. Nf1 {[%clk 0:02:45]}  Bg7 {[%clk 0:02:58]} 8. Ne3 {[%clk 0:02:45]}  Nge7 {[%clk 0:02:59]} 9. Ned5 {[%clk 0:02:44]}  O-O {[%clk 0:02:58]} 10. O-O {[%clk 0:02:44]}  Kh7 {[%clk 0:02:57]} 11. f4 {[%clk 0:02:43]}  f5 {[%clk 0:02:57]} 12. a3 {[%clk 0:02:33]}  Nxd5 {[%clk 0:02:53]} 13. Nxd5 {[%clk 0:02:30]}  exf4 {[%clk 0:02:50]} 14. exf5 {[%clk 0:02:17]}  g5 {[%clk 0:02:44]} 15. g4 {[%clk 0:00:59]}  fxg3 {[%clk 0:02:41]} 16. f6 {[%clk 0:00:54]}  Bxf6 {[%clk 0:02:32]} 17. Nxf6+ {[%clk 0:00:53]}  Rxf6 {[%clk 0:02:32]} 18. Bd2 {[%clk 0:00:49]}  gxh2+ {[%clk 0:02:32]} 19. Kxh2 {[%clk 0:00:46]}  Ne5 {[%clk 0:02:30]} 20. Bd5 {[%clk 0:00:37]}  Kg7 {[%clk 0:02:06]} 21. Qe2 {[%clk 0:00:35]}  Bg4 {[%clk 0:02:05]} 22. Qg2 {[%clk 0:00:30]}  Qe7 {[%clk 0:01:50]} 23. Rxf6 {[%clk 0:00:29]}  Qxf6 {[%clk 0:01:51]} 24. Rf1 {[%clk 0:00:30]}  Qe7 {[%clk 0:01:48]} 25. Bc3 {[%clk 0:00:30]}  Bd7 {[%clk 0:01:42]} 26. Rf7+ {[%clk 0:00:28]}  Qxf7 {[%clk 0:01:41]} 27. Bxf7 {[%clk 0:00:22]}  Kxf7 {[%clk 0:01:36]} 28. Bxe5 {[%clk 0:00:23]}  dxe5 {[%clk 0:01:36]} 29. Qxb7 {[%clk 0:00:20]}  Rd8 {[%clk 0:01:37]} 30. Qd5+ {[%clk 0:00:21]}  Ke7 {[%clk 0:01:36]} 31. Qxe5+ {[%clk 0:00:21]}  Be6 {[%clk 0:01:36]} 32. Qxc5+ {[%clk 0:00:22]}  Kf6 {[%clk 0:01:34]} 33. Qxa7 {[%clk 0:00:21]}  h5 {[%clk 0:01:30]} 34. Qf2+ {[%clk 0:00:20]}  Kg6 {[%clk 0:01:30]} 35. Qb6 {[%clk 0:00:20]}  Re8 {[%clk 0:01:29]} 36. a4 {[%clk 0:00:20]}  Kf5 {[%clk 0:01:23]} 37. a5 {[%clk 0:00:19]}  h4 {[%clk 0:01:23]} 38. Qb5+ {[%clk 0:00:18]}  Kf4 {[%clk 0:01:21]} 39. Qxe8 {[%clk 0:00:18]}  Bf5 {[%clk 0:01:21]} 40. Qb8+ {[%clk 0:00:16]}  Kf3 {[%clk 0:01:22]} 41. Qf8 {[%clk 0:00:13]}  Kf4 {[%clk 0:01:22]} 42. a6 {[%clk 0:00:12]}  g4 {[%clk 0:01:23]} 43. a7 {[%clk 0:00:12]}  g3+ {[%clk 0:01:23]} 44. Kg1 {[%clk 0:00:11]}  Kg4 {[%clk 0:01:24]} 45. a8=Q {[%clk 0:00:11]}  h3 {[%clk 0:01:25]} 46. Qg8+ {[%clk 0:00:11]}  Kf4 {[%clk 0:01:26]} 47. Qab8+ {[%clk 0:00:12]}  Ke3 {[%clk 0:01:26]} 48. Qgxg3+ {[%clk 0:00:12]}  Kd2 {[%clk 0:01:26]} 49. Qbf4+ {[%clk 0:00:12]} 1-0


[Site "https://www.chess.com"]

[Event "Titled Tuesday Blitz April 4 Late 2023"]
[White "Perez Ponsa, Federico"]
[Black "Klenburg, Michael"]
[WhiteFideId "117927"]
[BlackFideId "14102072"]
[WhiteElo "2590"]
[BlackElo "2396"]
[Result "1/2-1/2"]
[Round "02"]
[TimeControl "180+2"]
[Date "2023.04.04"]
[WhiteClock "0:00:07"]
[BlackClock "0:00:03"]

1. e4 {[%clk 0:03:00]}  d6 {[%clk 0:02:59]} 2. d4 {[%clk 0:02:54]}  Nf6 {[%clk 0:02:59]} 3. Nc3 {[%clk 0:02:54]}  e5 {[%clk 0:02:57]} 4. Nf3 {[%clk 0:02:53]}  Nbd7 {[%clk 0:02:57]} 5. Rg1 {[%clk 0:02:48]}  Be7 {[%clk 0:02:56]} 6. g4 {[%clk 0:02:48]}  g6 {[%clk 0:02:54]} 7. Be3 {[%clk 0:02:40]}  c6 {[%clk 0:02:53]} 8. g5 {[%clk 0:02:37]}  Nh5 {[%clk 0:02:52]} 9. a4 {[%clk 0:02:24]}  Qc7 {[%clk 0:02:52]} 10. Be2 {[%clk 0:02:22]}  b6 {[%clk 0:02:49]} 11. d5 {[%clk 0:02:22]}  c5 {[%clk 0:02:44]} 12. Bb5 {[%clk 0:02:06]}  a6 {[%clk 0:02:39]} 13. Bc6 {[%clk 0:01:58]}  Bb7 {[%clk 0:02:39]} 14. Nd2 {[%clk 0:01:51]}  Bxc6 {[%clk 0:02:32]} 15. dxc6 {[%clk 0:01:50]}  Qxc6 {[%clk 0:02:32]} 16. Nd5 {[%clk 0:01:49]}  Bd8 {[%clk 0:02:32]} 17. Nc4 {[%clk 0:01:40]}  O-O {[%clk 0:02:29]} 18. Qd2 {[%clk 0:01:30]}  b5 {[%clk 0:01:56]} 19. axb5 {[%clk 0:01:22]}  axb5 {[%clk 0:01:55]} 20. Rxa8 {[%clk 0:01:21]}  Qxa8 {[%clk 0:01:55]} 21. Nxd6 {[%clk 0:01:22]}  Qa1+ {[%clk 0:01:51]} 22. Qc1 {[%clk 0:01:21]}  Qa5+ {[%clk 0:01:47]} 23. Qd2 {[%clk 0:00:46]}  Qa1+ {[%clk 0:01:45]} 24. Qc1 {[%clk 0:00:45]}  Qa6 {[%clk 0:01:44]} 25. Nf5 {[%clk 0:00:41]}  gxf5 {[%clk 0:01:40]} 26. exf5 {[%clk 0:00:42]}  Kh8 {[%clk 0:01:29]} 27. Qd1 {[%clk 0:00:34]}  Ng7 {[%clk 0:01:27]} 28. f6 {[%clk 0:00:32]}  Nf5 {[%clk 0:01:16]} 29. Rg4 {[%clk 0:00:20]}  Qe6 {[%clk 0:01:09]} 30. Re4 {[%clk 0:00:18]}  Rg8 {[%clk 0:01:02]} 31. b3 {[%clk 0:00:17]}  Nxf6 {[%clk 0:00:57]} 32. Nxf6 {[%clk 0:00:08]}  Bxf6 {[%clk 0:00:57]} 33. Qh5 {[%clk 0:00:07]}  Be7 {[%clk 0:00:46]} 34. Bd2 {[%clk 0:00:05]}  Qg6 {[%clk 0:00:36]} 35. Qxg6 {[%clk 0:00:04]}  hxg6 {[%clk 0:00:32]} 36. Rxe5 {[%clk 0:00:05]}  b4 {[%clk 0:00:22]} 37. Re4 {[%clk 0:00:02]}  Ra8 {[%clk 0:00:19]} 38. c3 {[%clk 0:00:01]}  bxc3 {[%clk 0:00:16]} 39. Bxc3+ {[%clk 0:00:02]}  Kg8 {[%clk 0:00:17]} 40. h4 {[%clk 0:00:03]}  Rb8 {[%clk 0:00:14]} 41. Kd1 {[%clk 0:00:02]}  Rxb3 {[%clk 0:00:13]} 42. Kc2 {[%clk 0:00:03]}  Rb7 {[%clk 0:00:13]} 43. Re5 {[%clk 0:00:03]}  Rd7 {[%clk 0:00:12]} 44. h5 {[%clk 0:00:03]}  Nd4+ {[%clk 0:00:12]} 45. Bxd4 {[%clk 0:00:03]}  cxd4 {[%clk 0:00:12]} 46. hxg6 {[%clk 0:00:03]}  fxg6 {[%clk 0:00:12]} 47. Kd3 {[%clk 0:00:04]}  Kf7 {[%clk 0:00:11]} 48. f4 {[%clk 0:00:04]}  Bf8 {[%clk 0:00:09]} 49. f5 {[%clk 0:00:04]}  gxf5 {[%clk 0:00:09]} 50. Rxf5+ {[%clk 0:00:05]}  Kg8 {[%clk 0:00:09]} 51. g6 {[%clk 0:00:02]}  Bg7 {[%clk 0:00:09]} 52. Rb5 {[%clk 0:00:02]}  Kf8 {[%clk 0:00:08]} 53. Rf5+ {[%clk 0:00:03]}  Ke8 {[%clk 0:00:08]} 54. Rf4 {[%clk 0:00:03]}  Rd6 {[%clk 0:00:07]} 55. Re4+ {[%clk 0:00:02]}  Kf8 {[%clk 0:00:07]} 56. Rg4 {[%clk 0:00:03]}  Ke7 {[%clk 0:00:06]} 57. Rg1 {[%clk 0:00:04]}  Rf6 {[%clk 0:00:06]} 58. Ke4 {[%clk 0:00:04]}  Re6+ {[%clk 0:00:06]} 59. Kd5 {[%clk 0:00:04]}  Re3 {[%clk 0:00:06]} 60. Ra1 {[%clk 0:00:04]}  Kf6 {[%clk 0:00:06]} 61. Kxd4 {[%clk 0:00:04]}  Rg3 {[%clk 0:00:04]} 62. Ra6+ {[%clk 0:00:03]}  Kf5+ {[%clk 0:00:04]} 63. Kd5 {[%clk 0:00:03]}  Bf6 {[%clk 0:00:04]} 64. g7 {[%clk 0:00:03]}  Rxg7 {[%clk 0:00:04]} 65. Ra2 {[%clk 0:00:03]}  Rd7+ {[%clk 0:00:04]} 66. Kc6 {[%clk 0:00:04]}  Rd1 {[%clk 0:00:04]} 67. Rf2+ {[%clk 0:00:04]}  Ke6 {[%clk 0:00:04]} 68. Re2+ {[%clk 0:00:05]}  Be5 {[%clk 0:00:05]} 69. Kc5 {[%clk 0:00:05]}  Rc1+ {[%clk 0:00:05]} 70. Kb4 {[%clk 0:00:06]}  Kd5 {[%clk 0:00:05]} 71. Rg2 {[%clk 0:00:05]}  Rb1+ {[%clk 0:00:04]} 72. Ka3 {[%clk 0:00:04]}  Rb8 {[%clk 0:00:04]} 73. Rg5 {[%clk 0:00:02]}  Kd6 {[%clk 0:00:03]} 74. Ka4 {[%clk 0:00:02]}  Bd4 {[%clk 0:00:03]} 75. Rb5 {[%clk 0:00:02]}  Ra8+ {[%clk 0:00:03]} 76. Kb3 {[%clk 0:00:03]}  Ra1 {[%clk 0:00:03]} 77. Kc4 {[%clk 0:00:04]}  Be5 {[%clk 0:00:03]} 78. Rd5+ {[%clk 0:00:04]}  Ke6 {[%clk 0:00:03]} 79. Rd2 {[%clk 0:00:05]}  Rc1+ {[%clk 0:00:03]} 80. Kd3 {[%clk 0:00:06]}  Kf5 {[%clk 0:00:02]} 81. Rf2+ {[%clk 0:00:06]}  Bf4 {[%clk 0:00:02]} 82. Rc2 {[%clk 0:00:07]}  Rd1+ {[%clk 0:00:02]} 83. Ke2 {[%clk 0:00:07]}  Rd2+ {[%clk 0:00:02]} 84. Rxd2 {[%clk 0:00:07]}  Bxd2 {[%clk 0:00:03]} 1/2-1/2


[Site "https://www.chess.com"]

[Event "Titled Tuesday Blitz April 4 Late 2023"]
[White "Jimenez Almeida, Luis David"]
[Black "Urazayev, Arystanbek"]
[WhiteFideId "22242244"]
[BlackFideId "13709810"]
[WhiteElo "2245"]
[BlackElo "2449"]
[Result "0-1"]
[Round "02"]
[TimeControl "180+2"]
[Date "2023.04.04"]
[WhiteClock "0:01:20"]
[BlackClock "0:02:26"]

1. e4 {[%clk 0:03:00]}  c6 {[%clk 0:03:00]} 2. Nc3 {[%clk 0:03:00]}  d5 {[%clk 0:03:01]} 3. Qf3 {[%clk 0:03:00]}  dxe4 {[%clk 0:03:01]} 4. Nxe4 {[%clk 0:03:01]}  Nf6 {[%clk 0:03:02]} 5. Bc4 {[%clk 0:03:00]}  e6 {[%clk 0:02:57]} 6. Ne2 {[%clk 0:02:56]}  Nxe4 {[%clk 0:02:58]} 7. Qxe4 {[%clk 0:02:56]}  Nd7 {[%clk 0:02:58]} 8. d4 {[%clk 0:02:56]}  Nf6 {[%clk 0:02:59]} 9. Qf3 {[%clk 0:02:56]}  Be7 {[%clk 0:02:56]} 10. O-O {[%clk 0:02:56]}  O-O {[%clk 0:02:57]} 11. Bf4 {[%clk 0:02:55]}  Nd5 {[%clk 0:02:56]} 12. Bg3 {[%clk 0:02:54]}  b5 {[%clk 0:02:53]} 13. Bd3 {[%clk 0:02:53]}  Bb7 {[%clk 0:02:51]} 14. c4 {[%clk 0:02:38]}  bxc4 {[%clk 0:02:50]} 15. Bxc4 {[%clk 0:02:39]}  Qb6 {[%clk 0:02:47]} 16. Bb3 {[%clk 0:02:28]}  c5 {[%clk 0:02:45]} 17. dxc5 {[%clk 0:02:11]}  Bxc5 {[%clk 0:02:46]} 18. Qg4 {[%clk 0:02:04]}  Nf6 {[%clk 0:02:37]} 19. Qh4 {[%clk 0:01:58]}  Qc6 {[%clk 0:02:26]} 20. Qh3 {[%clk 0:01:35]}  Ne4 {[%clk 0:02:26]} 21. Rac1 {[%clk 0:01:20]}  Ng5 {[%clk 0:02:26]} 0-1


[Site "https://www.chess.com"]

[Event "Titled Tuesday Blitz April 4 Late 2023"]
[White "Gokerkan, Cem Kaan"]
[Black "Omelja, Artem"]
[WhiteFideId "6336760"]
[BlackFideId "14119846"]
[WhiteElo "2365"]
[BlackElo "2404"]
[Result "1-0"]
[Round "02"]
[TimeControl "180+2"]
[Date "2023.04.04"]
[WhiteClock "0:00:11"]
[BlackClock "0:00:02"]

1. e4 {[%clk 0:02:58]}  c5 {[%clk 0:02:57]} 2. c3 {[%clk 0:02:58]}  d5 {[%clk 0:02:56]} 3. exd5 {[%clk 0:02:58]}  Qxd5 {[%clk 0:02:57]} 4. d4 {[%clk 0:02:58]}  Nf6 {[%clk 0:02:57]} 5. Nf3 {[%clk 0:02:59]}  Bg4 {[%clk 0:02:57]} 6. Be2 {[%clk 0:02:58]}  Nc6 {[%clk 0:02:56]} 7. h3 {[%clk 0:02:58]}  Bh5 {[%clk 0:02:56]} 8. O-O {[%clk 0:02:57]}  e6 {[%clk 0:02:56]} 9. Be3 {[%clk 0:02:57]}  cxd4 {[%clk 0:02:54]} 10. cxd4 {[%clk 0:02:58]}  Be7 {[%clk 0:02:54]} 11. Nc3 {[%clk 0:02:58]}  Qa5 {[%clk 0:02:54]} 12. Qb3 {[%clk 0:02:59]}  Qb4 {[%clk 0:02:54]} 13. g4 {[%clk 0:02:58]}  Bg6 {[%clk 0:02:54]} 14. Bb5 {[%clk 0:02:58]}  O-O {[%clk 0:02:51]} 15. Bxc6 {[%clk 0:02:51]}  bxc6 {[%clk 0:02:52]} 16. Ne5 {[%clk 0:02:52]}  Rfc8 {[%clk 0:02:43]} 17. f4 {[%clk 0:02:36]}  Qxb3 {[%clk 0:02:31]} 18. axb3 {[%clk 0:02:36]}  Bc2 {[%clk 0:02:32]} 19. Ra6 {[%clk 0:02:31]}  Bxb3 {[%clk 0:02:18]} 20. Nxc6 {[%clk 0:02:27]}  Bf8 {[%clk 0:02:16]} 21. Rxa7 {[%clk 0:02:24]}  Nd5 {[%clk 0:01:50]} 22. Rxa8 {[%clk 0:02:04]}  Rxa8 {[%clk 0:01:49]} 23. Bd2 {[%clk 0:02:03]}  Nxc3 {[%clk 0:01:44]} 24. Bxc3 {[%clk 0:01:59]}  Bd5 {[%clk 0:01:44]} 25. Ne5 {[%clk 0:01:51]}  Bd6 {[%clk 0:01:19]} 26. Kf2 {[%clk 0:01:29]}  f6 {[%clk 0:01:18]} 27. Nd3 {[%clk 0:01:29]}  Bc4 {[%clk 0:01:17]} 28. Ke3 {[%clk 0:01:29]}  Kf7 {[%clk 0:01:08]} 29. Rf2 {[%clk 0:01:24]}  h6 {[%clk 0:00:59]} 30. Nc5 {[%clk 0:00:38]}  Bd5 {[%clk 0:00:47]} 31. Ne4 {[%clk 0:00:34]}  Be7 {[%clk 0:00:45]} 32. Rf1 {[%clk 0:00:35]}  f5 {[%clk 0:00:38]} 33. Nf2 {[%clk 0:00:32]}  g5 {[%clk 0:00:37]} 34. gxf5 {[%clk 0:00:11]}  exf5 {[%clk 0:00:35]} 35. Rg1 {[%clk 0:00:07]}  Re8 {[%clk 0:00:33]} 36. Nd3 {[%clk 0:00:05]}  gxf4+ {[%clk 0:00:32]} 37. Kxf4 {[%clk 0:00:04]}  Bg5+ {[%clk 0:00:32]} 38. Rxg5 {[%clk 0:00:02]}  hxg5+ {[%clk 0:00:32]} 39. Kxg5 {[%clk 0:00:03]}  Be4 {[%clk 0:00:30]} 40. Nc5 {[%clk 0:00:03]}  Rh8 {[%clk 0:00:27]} 41. h4 {[%clk 0:00:02]}  Rg8+ {[%clk 0:00:27]} 42. Kf4 {[%clk 0:00:02]}  Rg4+ {[%clk 0:00:28]} 43. Ke5 {[%clk 0:00:03]}  Rxh4 {[%clk 0:00:27]} 44. d5 {[%clk 0:00:03]}  Rh1 {[%clk 0:00:25]} 45. d6 {[%clk 0:00:03]}  Rd1 {[%clk 0:00:26]} 46. d7 {[%clk 0:00:03]}  Bc6 {[%clk 0:00:26]} 47. Kxf5 {[%clk 0:00:02]}  Rd5+ {[%clk 0:00:24]} 48. Kf4 {[%clk 0:00:02]}  Ke7 {[%clk 0:00:21]} 49. Ne4 {[%clk 0:00:01]}  Rxd7 {[%clk 0:00:19]} 50. Ng5 {[%clk 0:00:02]}  Rd1 {[%clk 0:00:19]} 51. Ke3 {[%clk 0:00:02]}  Rg1 {[%clk 0:00:19]} 52. Kf4 {[%clk 0:00:01]}  Rf1+ {[%clk 0:00:19]} 53. Ke3 {[%clk 0:00:01]}  Kd6 {[%clk 0:00:20]} 54. Ne4+ {[%clk 0:00:01]}  Kc7 {[%clk 0:00:20]} 55. Nd2 {[%clk 0:00:01]}  Re1+ {[%clk 0:00:20]} 56. Kd4 {[%clk 0:00:02]}  Kb7 {[%clk 0:00:20]} 57. Nc4 {[%clk 0:00:02]}  Rd1+ {[%clk 0:00:20]} 58. Kc5 {[%clk 0:00:03]}  Rd5+ {[%clk 0:00:21]} 59. Kb4 {[%clk 0:00:04]}  Rb5+ {[%clk 0:00:21]} 60. Ka3 {[%clk 0:00:04]}  Ka6 {[%clk 0:00:20]} 61. Ne5 {[%clk 0:00:05]}  Bd5 {[%clk 0:00:20]} 62. Nd3 {[%clk 0:00:05]}  Rb3+ {[%clk 0:00:20]} 63. Ka4 {[%clk 0:00:05]}  Rb5 {[%clk 0:00:17]} 64. Nb4+ {[%clk 0:00:06]}  Kb6 {[%clk 0:00:17]} 65. Bd4+ {[%clk 0:00:06]}  Rc5 {[%clk 0:00:07]} 66. Nd3 {[%clk 0:00:07]}  Bc6+ {[%clk 0:00:06]} 67. Kb4 {[%clk 0:00:07]}  Kb7 {[%clk 0:00:06]} 68. Nxc5+ {[%clk 0:00:07]}  Ka8 {[%clk 0:00:07]} 69. Ne6 {[%clk 0:00:07]}  Bh1 {[%clk 0:00:06]} 70. Nf4 {[%clk 0:00:08]}  Kb7 {[%clk 0:00:05]} 71. Kc5 {[%clk 0:00:09]}  Ka8 {[%clk 0:00:06]} 72. b4 {[%clk 0:00:10]}  Kb7 {[%clk 0:00:07]} 73. Nd5 {[%clk 0:00:11]}  Ka8 {[%clk 0:00:08]} 74. Nc3 {[%clk 0:00:12]}  Kb7 {[%clk 0:00:08]} 75. Nb5 {[%clk 0:00:13]}  Ka8 {[%clk 0:00:09]} 76. Nd6 {[%clk 0:00:13]}  Ka7 {[%clk 0:00:08]} 77. b5 {[%clk 0:00:13]}  Kb8 {[%clk 0:00:09]} 78. Nc4 {[%clk 0:00:12]}  Ka8 {[%clk 0:00:09]} 79. Ne5 {[%clk 0:00:12]}  Kb7 {[%clk 0:00:10]} 80. Nc4 {[%clk 0:00:11]}  Ka8 {[%clk 0:00:11]} 81. Kb6 {[%clk 0:00:11]}  Kb8 {[%clk 0:00:10]} 82. Na5 {[%clk 0:00:12]}  Ka8 {[%clk 0:00:09]} 83. Kc7 {[%clk 0:00:12]}  Bg2 {[%clk 0:00:09]} 84. b6 {[%clk 0:00:11]}  Bh1 {[%clk 0:00:10]} 85. Nc6 {[%clk 0:00:10]}  Bxc6 {[%clk 0:00:01]} 86. Kxc6 {[%clk 0:00:11]}  Kb8 {[%clk 0:00:02]} 87. Be5+ {[%clk 0:00:11]} 1-0


[Site "https://www.chess.com"]

[Event "Titled Tuesday Blitz April 4 Late 2023"]
[White "Holt, Conrad"]
[Black "Defend1r"]
[WhiteFideId "2034387"]
[WhiteElo "2592"]
[BlackElo "2539"]
[Result "1-0"]
[Round "02"]
[TimeControl "180+2"]
[Date "2023.04.04"]
[WhiteClock "0:00:09"]
[BlackClock "0:00:02"]

1. d4 {[%clk 0:03:00]}  Nf6 {[%clk 0:03:00]} 2. c4 {[%clk 0:03:01]}  e6 {[%clk 0:03:00]} 3. Nc3 {[%clk 0:03:00]}  Bb4 {[%clk 0:03:01]} 4. Qc2 {[%clk 0:03:01]}  d6 {[%clk 0:03:00]} 5. Nf3 {[%clk 0:02:58]}  O-O {[%clk 0:02:55]} 6. e3 {[%clk 0:02:54]}  c5 {[%clk 0:02:46]} 7. Bd3 {[%clk 0:02:54]}  Nc6 {[%clk 0:02:44]} 8. O-O {[%clk 0:02:54]}  Bxc3 {[%clk 0:02:03]} 9. Qxc3 {[%clk 0:02:53]}  e5 {[%clk 0:02:02]} 10. dxe5 {[%clk 0:02:13]}  dxe5 {[%clk 0:02:02]} 11. Bc2 {[%clk 0:02:14]}  Qe7 {[%clk 0:01:40]} 12. b3 {[%clk 0:02:10]}  Bg4 {[%clk 0:01:23]} 13. Bb2 {[%clk 0:02:10]}  Bxf3 {[%clk 0:01:17]} 14. gxf3 {[%clk 0:02:10]}  Qe6 {[%clk 0:01:13]} 15. Kg2 {[%clk 0:02:08]}  h5 {[%clk 0:01:06]} 16. Rg1 {[%clk 0:02:07]}  h4 {[%clk 0:01:00]} 17. Rad1 {[%clk 0:01:50]}  Rad8 {[%clk 0:00:59]} 18. a3 {[%clk 0:01:35]}  Rxd1 {[%clk 0:00:54]} 19. Bxd1 {[%clk 0:01:35]}  Qf5 {[%clk 0:00:48]} 20. Qc2 {[%clk 0:01:29]}  Qh5 {[%clk 0:00:31]} 21. f4 {[%clk 0:01:25]}  h3+ {[%clk 0:00:31]} 22. Kh1 {[%clk 0:01:25]}  Qh4 {[%clk 0:00:31]} 23. Qf5 {[%clk 0:01:10]}  Rd8 {[%clk 0:00:24]} 24. Bxe5 {[%clk 0:00:39]}  Nxe5 {[%clk 0:00:14]} 25. Qxe5 {[%clk 0:00:36]}  Qxf2 {[%clk 0:00:13]} 26. Qg5 {[%clk 0:00:16]}  g6 {[%clk 0:00:13]} 27. Qg3 {[%clk 0:00:01]}  Qxg3 {[%clk 0:00:10]} 28. hxg3 {[%clk 0:00:02]}  Rd2 {[%clk 0:00:07]} 29. Bf3 {[%clk 0:00:03]}  Rf2 {[%clk 0:00:06]} 30. Bd5 {[%clk 0:00:01]}  Ng4 {[%clk 0:00:06]} 31. Re1 {[%clk 0:00:01]}  Rh2+ {[%clk 0:00:05]} 32. Kg1 {[%clk 0:00:01]}  Rb2 {[%clk 0:00:05]} 33. Bf3 {[%clk 0:00:02]}  h2+ {[%clk 0:00:05]} 34. Kh1 {[%clk 0:00:02]}  Nf2+ {[%clk 0:00:06]} 35. Kxh2 {[%clk 0:00:03]}  Nd3+ {[%clk 0:00:05]} 36. Re2 {[%clk 0:00:03]}  Rxb3 {[%clk 0:00:05]} 37. a4 {[%clk 0:00:03]}  Rc3 {[%clk 0:00:05]} 38. Bxb7 {[%clk 0:00:03]}  Rxc4 {[%clk 0:00:04]} 39. Ba6 {[%clk 0:00:03]}  Rc3 {[%clk 0:00:04]} 40. Bxd3 {[%clk 0:00:04]}  Rxd3 {[%clk 0:00:04]} 41. Kg2 {[%clk 0:00:05]}  Ra3 {[%clk 0:00:05]} 42. Rc2 {[%clk 0:00:05]}  Rxa4 {[%clk 0:00:05]} 43. Rxc5 {[%clk 0:00:05]}  Ra2+ {[%clk 0:00:05]} 44. Kf3 {[%clk 0:00:05]}  Kg7 {[%clk 0:00:05]} 45. g4 {[%clk 0:00:06]}  a5 {[%clk 0:00:06]} 46. g5 {[%clk 0:00:06]}  a4 {[%clk 0:00:06]} 47. Ra5 {[%clk 0:00:06]}  a3 {[%clk 0:00:07]} 48. Ke4 {[%clk 0:00:07]}  Ra1 {[%clk 0:00:07]} 49. Ke5 {[%clk 0:00:07]}  a2 {[%clk 0:00:08]} 50. e4 {[%clk 0:00:08]}  Kf8 {[%clk 0:00:07]} 51. Kf6 {[%clk 0:00:08]}  Ke8 {[%clk 0:00:07]} 52. Ra8+ {[%clk 0:00:08]}  Kd7 {[%clk 0:00:08]} 53. Kxf7 {[%clk 0:00:08]}  Kd6 {[%clk 0:00:07]} 54. Kxg6 {[%clk 0:00:09]}  Kc5 {[%clk 0:00:06]} 55. f5 {[%clk 0:00:09]}  Kd4 {[%clk 0:00:06]} 56. f6 {[%clk 0:00:09]}  Kxe4 {[%clk 0:00:02]} 57. f7 {[%clk 0:00:10]}  Ke5 {[%clk 0:00:02]} 58. f8=Q {[%clk 0:00:09]} 1-0


[Site "https://www.chess.com"]

[Event "Titled Tuesday Blitz April 4 Late 2023"]
[White "WindWhistler11"]
[Black "Bilych, Olexiy"]
[BlackFideId "14156504"]
[WhiteElo "2463"]
[BlackElo "2320"]
[Result "0-1"]
[Round "02"]
[TimeControl "180+2"]
[Date "2023.04.04"]
[WhiteClock "0:00:16"]
[BlackClock "0:01:13"]

1. Nf3 {[%clk 0:02:59]}  g6 {[%clk 0:03:00]} 2. g3 {[%clk 0:02:55]}  Bg7 {[%clk 0:03:01]} 3. Bg2 {[%clk 0:02:56]}  e5 {[%clk 0:03:01]} 4. d3 {[%clk 0:02:53]}  d5 {[%clk 0:03:02]} 5. O-O {[%clk 0:02:53]}  Nc6 {[%clk 0:03:01]} 6. c4 {[%clk 0:02:53]}  Nge7 {[%clk 0:03:01]} 7. cxd5 {[%clk 0:02:44]}  Nxd5 {[%clk 0:03:02]} 8. a3 {[%clk 0:02:44]}  a5 {[%clk 0:02:58]} 9. Qc2 {[%clk 0:02:37]}  O-O {[%clk 0:02:56]} 10. Nc3 {[%clk 0:02:28]}  Nde7 {[%clk 0:02:54]} 11. Bd2 {[%clk 0:02:21]}  Nd4 {[%clk 0:02:44]} 12. Nxd4 {[%clk 0:02:18]}  exd4 {[%clk 0:02:45]} 13. Na4 {[%clk 0:02:10]}  c6 {[%clk 0:02:39]} 14. Qc5 {[%clk 0:01:59]}  Bg4 {[%clk 0:02:23]} 15. Nb6 {[%clk 0:01:55]}  Ra6 {[%clk 0:02:19]} 16. Bxa5 {[%clk 0:01:51]}  Nc8 {[%clk 0:02:13]} 17. Nc4 {[%clk 0:01:35]}  b6 {[%clk 0:02:13]} 18. Qxc6 {[%clk 0:01:35]}  Na7 {[%clk 0:01:45]} 19. Qe4 {[%clk 0:00:58]}  Bf5 {[%clk 0:01:45]} 20. Qb7 {[%clk 0:00:58]}  Bc8 {[%clk 0:01:46]} 21. Bxb6 {[%clk 0:00:39]}  Bxb7 {[%clk 0:01:46]} 22. Bxd8 {[%clk 0:00:38]}  Bxg2 {[%clk 0:01:46]} 23. Kxg2 {[%clk 0:00:38]}  Rxd8 {[%clk 0:01:46]} 24. b4 {[%clk 0:00:37]}  Nb5 {[%clk 0:01:41]} 25. a4 {[%clk 0:00:34]}  Nc3 {[%clk 0:01:41]} 26. a5 {[%clk 0:00:33]}  Rb8 {[%clk 0:01:41]} 27. Rfb1 {[%clk 0:00:20]}  Nxb1 {[%clk 0:01:41]} 28. Rxb1 {[%clk 0:00:21]}  Rb5 {[%clk 0:01:35]} 29. Na3 {[%clk 0:00:17]}  Rb8 {[%clk 0:01:33]} 30. Nc4 {[%clk 0:00:18]}  Bf8 {[%clk 0:01:16]} 31. b5 {[%clk 0:00:17]}  Raa8 {[%clk 0:01:16]} 32. a6 {[%clk 0:00:16]}  Rxa6 {[%clk 0:01:13]} 0-1


[Site "https://www.chess.com"]

[Event "Titled Tuesday Blitz April 4 Late 2023"]
[White "Papasimakopoulos, Alexandros"]
[Black "Tworuszka, Michal"]
[WhiteFideId "4244125"]
[BlackFideId "1117858"]
[WhiteElo "2359"]
[BlackElo "2463"]
[Result "1-0"]
[Round "02"]
[TimeControl "180+2"]
[Date "2023.04.04"]
[WhiteClock "0:01:15"]
[BlackClock "0:00:17"]

1. d4 {[%clk 0:03:00]}  Nf6 {[%clk 0:02:58]} 2. c4 {[%clk 0:03:00]}  e6 {[%clk 0:02:57]} 3. Nc3 {[%clk 0:03:00]}  Bb4 {[%clk 0:02:56]} 4. Qc2 {[%clk 0:02:59]}  d5 {[%clk 0:02:57]} 5. cxd5 {[%clk 0:02:59]}  exd5 {[%clk 0:02:56]} 6. Bg5 {[%clk 0:02:59]}  h6 {[%clk 0:02:54]} 7. Bh4 {[%clk 0:02:59]}  c5 {[%clk 0:02:49]} 8. dxc5 {[%clk 0:02:55]}  Be6 {[%clk 0:02:39]} 9. e3 {[%clk 0:02:53]}  Nbd7 {[%clk 0:02:39]} 10. a3 {[%clk 0:02:52]}  Bxc5 {[%clk 0:02:38]} 11. Nf3 {[%clk 0:02:51]}  Rc8 {[%clk 0:02:35]} 12. Bd3 {[%clk 0:02:48]}  O-O {[%clk 0:02:34]} 13. O-O {[%clk 0:02:48]}  Be7 {[%clk 0:02:24]} 14. Nd4 {[%clk 0:02:48]}  Nc5 {[%clk 0:02:24]} 15. Bf5 {[%clk 0:02:45]}  Bxf5 {[%clk 0:02:13]} 16. Qxf5 {[%clk 0:02:46]}  Nce4 {[%clk 0:02:04]} 17. Nxe4 {[%clk 0:02:36]}  Nxe4 {[%clk 0:01:50]} 18. Bxe7 {[%clk 0:02:34]}  Qxe7 {[%clk 0:01:51]} 19. Qxd5 {[%clk 0:02:31]}  Rc5 {[%clk 0:01:32]} 20. Qa2 {[%clk 0:02:22]}  Rh5 {[%clk 0:01:27]} 21. Rad1 {[%clk 0:02:14]}  Qc7 {[%clk 0:00:51]} 22. h3 {[%clk 0:02:04]}  Ng5 {[%clk 0:00:40]} 23. f4 {[%clk 0:01:44]}  Ne4 {[%clk 0:00:32]} 24. Qb1 {[%clk 0:01:40]}  Qe7 {[%clk 0:00:29]} 25. Nf3 {[%clk 0:01:34]}  Re8 {[%clk 0:00:25]} 26. Ne5 {[%clk 0:01:33]}  f5 {[%clk 0:00:20]} 27. Qa2+ {[%clk 0:01:27]}  Kh7 {[%clk 0:00:20]} 28. Rd7 {[%clk 0:01:26]}  Qc5 {[%clk 0:00:18]} 29. Rxg7+ {[%clk 0:01:15]}  Kxg7 {[%clk 0:00:17]} 30. Qf7+ {[%clk 0:01:15]}  Kh8 {[%clk 0:00:17]} 31. Ng6# {[%clk 0:01:15]} 1-0


[Site "https://www.chess.com"]